Cogmind - Beta 10.2 @@@ ROGUE MODE // 2021.04.25 @ 15:43:21 // Winter2019/RPGLIKE Player: Chiefwannatoke Result: Core destroyed Performance ------------- Evolutions (0) 0 Regions Visited (2) 400 Robots Destroyed (15) 75 Value Destroyed (283) 283 Prototype IDs (3) 60 Alien Tech Used (0) 0 Bonus (0) 0 TOTAL SCORE: 818 Bonus ------- None Cogmind --------- Core Integrity 0/600 Matter 300/300 Energy 250/250 System Corruption 0% Temperature Cool (0) Movement Rolling (90) Location -10/Mines Parts ------- > --- POWER (1) -------- Ion Engine > --- PROPULSION (2) --- Wheel Compact Wheel > --- UTILITY (3) ------ Sensor Array Signal Interpreter ECM Suite > --- WEAPON (1) ------- (None) > --- INVENTORY (2) ---- Ion Engine Peak State ------------ > --- POWER ------------ Ion Engine > --- PROPULSION ------- Wheel Compact Wheel > --- UTILITY ---------- Sensor Array Signal Interpreter ECM Suite > --- WEAPON ----------- Medium Laser > --- INVENTORY -------- (None) [Rating: 7] Favorites ----------- Power Ion Engine Engine Ion Engine Propulsion Compact Wheel Wheel Compact Wheel Utility Signal Interpreter Device ECM Suite Processor Signal Interpreter Weapon Medium Laser Energy Gun Medium Laser Build | -11 -10 -10 ------- Run | Scr Mat Min Slots Evolved 3 | 3 . . Power . | . . . Propulsion 1 | 1 . . Utility 2 | 2 . . Weapon . | . . . Parts Attached 8 | 4 4 . Power 2 | 1 1 . Engine 2 | 1 1 . Core . | . . . Reactor . | . . . Propulsion 2 | 2 . . Treads . | . . . Leg . | . . . Wheel 2 | 2 . . Hover . | . . . Flight . | . . . Utility 3 | . 3 . Device 2 | . 2 . Storage . | . . . Processor 1 | . 1 . Hackware . | . . . Protection . | . . . Artifact . | . . . Weapon 1 | 1 . . Energy Gun 1 | 1 . . Energy Cannon . | . . . Ballistic Gun . | . . . Ballistic Cannon . | . . . Launcher . | . . . Special Weapon . | . . . Impact Weapon . | . . . Slashing Weapon . | . . . Piercing Weapon . | . . . Special Melee Weapon . | . . . Unidentified Prototypes . | . . . Parts Lost 1 | . . 1 Power . | . . . Propulsion . | . . . Utility . | . . . Weapon 1 | . . 1 Highest Loss Streak 1 | . . 1 Average Slot Usage (%) 91 | . 87 98 Engine 14 | . 14 14 Wheel 28 | . 28 28 Device 20 | . 17 28 Processor 13 | . 13 14 Energy Gun 13 | . 14 12 Naked Turns . | . . . Heaviest Build 9 | 7 9 9 Greatest Support 26 | 26 26 26 Greatest Overweight (x) . | . . . Average Overweight (x) . | . . . Largest Inventory Capacity 2 | 2 2 2 Average Capacity 2 | 2 2 2 Most Carried 1 | . 1 1 Average Carried . | . . 1 Final Capacity 2 | 2 2 2 Final Carried 1 | . 1 1 Class Distribution -------------------- 100% | Mutant Dominant Class ---------------- Mutant | -10/Materials Mutant | -10/Mines Resources | -11 -10 -10 ----------- Run | Scr Mat Min Matter Collected 371 | 240 131 . Remotely . | . . . Salvage Created 334 | . 255 79 Parts 23 | . 17 6 Haulers Intercepted 1 | . 1 . Recyclers Shooed . | . . . Parts Field Recycled . | . . . Retrieved Matter . | . . . Parts Self-Destructed . | . . . Prevented . | . . . Kills | -11 -10 -10 ------- Run | Scr Mat Min Combat Hostiles Destroyed 13 | . 8 5 Melee 1 | . . 1 Guns 11 | . 7 4 Classes Destroyed 4 | . 3 1 Tunneler 1 | . . 1 Hauler 1 | . 1 . Swarmer 7 | . 2 5 Grunt 6 | . 6 . Best Kill Streak 4 | . 3 4 Combat Bots Only 3 | . 3 3 Max Kills in Single Turn 1 | . 1 1 Gunslinging . | . . . Exploded . | . . . Melee 1 | . . 1 Uniques/NPCs Destroyed . | . . . Combat | -11 -10 -10 -------- Run | Scr Mat Min Damage Taken 996 | . 492 504 Core 830 | . 405 425 Absorbed by Shields . | . . . Redirected to Core 499 | . 269 230 Core Remaining (%) 100 | 100 . . Volleys Fired 74 | . 52 22 Largest 1 | . 1 1 Hottest 50 | . 50 50 Shots Fired 74 | . 52 22 Gun 74 | . 52 22 Cannon . | . . . Launcher . | . . . Special . | . . . Kinetic . | . . . Thermal 74 | . 52 22 Explosive . | . . . Electromagnetic . | . . . Robot Hit Streak 9 | . 8 9 Robot Miss Streak 2 | . 2 1 Penetration Max . | . . . Secondary Targets . | . . . Shots Hit Robots 57 | . 40 17 Core Hits 25 | . 15 10 Critical Hits . | . . . Critical Kills . | . . . Critical Parts Destroyed . | . . . Melee Attacks . | . . . Impact . | . . . Slashing . | . . . Piercing . | . . . Sneak Attacks . | . . . Combat Hostiles . | . . . Follow-up Attacks . | . . . Damage Inflicted 751 | . 519 232 Guns 731 | . 519 212 Cannons . | . . . Explosions . | . . . Melee . | . . . Ramming 20 | . . 20 Kinetic . | . . . Thermal 731 | . 519 212 Explosive . | . . . Electromagnetic . | . . . Impact . | . . . Slashing . | . . . Piercing . | . . . Highest Corruption . | . . . Average Corruption . | . . . Corruption Purged . | . . . Overload Shots . | . . . Overflow Damage . | . . . Projectiles . | . . . Explosions . | . . . Melee . | . . . Knockbacks . | . . . Impact . | . . . Kinetic . | . . . Secondary . | . . . Self-Inflicted Damage 8 | . . 8 Shots . | . . . Rammed 11 | . . 11 Targets Rammed 11 | . . 11 Kicked . | . . . Crushed . | . . . Highest Temperature 400 | . 400 180 Average Temperature 147 | . 174 78 Received Heat Transfer 240 | . 240 . Effects 3 | . 3 . Energy Bleed 1 | . 1 . Matter Decay 2 | . 2 . Siege Activations . | . . . Robots Corrupted . | . . . Combat Hostiles . | . . . Parts Fried . | . . . Impact Corruptions . | . . . Robots Melted 1 | . 1 . Combat Hostiles 1 | . 1 . Parts Melted 4 | . 1 3 Heat Transferred 2146 | . 1517 629 Parts Sabotaged . | . . . Parts Stolen . | . . . Parts Stripped . | . . . Power Chain Reactions . | . . . Missiles Intercepted . | . . . Alert | -11 -10 -10 ------- Run | Scr Mat Min Peak Influence 252 | . 252 242 Initial 97 | . . 97 Average 149 | . 163 163 Maximum Alert Level 1 | . 1 1 Low Security (%) 65 | 100 51 85 Level 1 34 | . 48 14 Level 2 . | . . . Level 3 . | . . . Level 4 . | . . . Level 5 . | . . . High Security . | . . . Max Security . | . . . Squads Dispatched 2 | . 2 . Investigation 2 | . 2 . Extermination . | . . . Reinforcement . | . . . Assault . | . . . Garrison . | . . . Intercept . | . . . Construction Impeded . | . . . Haulers Reinforced . | . . . Stealth | -11 -10 -10 --------- Run | Scr Mat Min Distress Signals . | . . . Communications Jammed . | . . . Distress Signals . | . . . Times Spotted 20 | . 12 8 Peak Tracking Total 5 | . 5 3 Tactical Retreats 2 | . 1 1 Traps | -11 -10 -10 ------- Run | Scr Mat Min Traps Triggered 1 | . 1 . Indirectly . | . . . Trap Hack Attempts . | . . . Triggered . | . . . Disarmed . | . . . Reprogrammed . | . . . Reused . | . . . Traps Extracted . | . . . Installed . | . . . Triggered . | . . . Machines | -11 -10 -10 ---------- Run | Scr Mat Min Machines Disabled . | . . . Max in Single Turn . | . . . Machines Sabotaged . | . . . Garrisons Compromised . | . . . Overloaded Fab Kills . | . . . Fab Network Shutdowns . | . . . Hacking | -11 -10 -10 --------- Run | Scr Mat Min Machines Accessed 3 | . 3 . Terminals 2 | . 2 . Fabricators . | . . . Repair Stations . | . . . Recycling Units 1 | . 1 . Scanalyzers . | . . . Garrison Access . | . . . Total Hacks 10 | . 10 . Successful 6 | . 6 . Failed 4 | . 4 . Catastrophic . | . . . Database Lockouts . | . . . Manual . | . . . Terminals 7 | . 7 . Fabricators . | . . . Repair Stations . | . . . Recycling Units 3 | . 3 . Scanalyzers . | . . . Garrison Access . | . . . Terminal Hacks 4 | . 4 . Robot Analysis 1 | . 1 . Prototype ID Bank 2 | . 2 . Locate Traps 1 | . 1 . Fabricator Hacks . | . . . Repair Station Hacks . | . . . Recycling Unit Hacks 2 | . 2 . Report Inventory 1 | . 1 . Retrieve Components 1 | . 1 . Scanalyzer . | . . . Garrison Access Hacks . | . . . Unauthorized Hacks . | . . . Terminals . | . . . Fabricators . | . . . Repair Stations . | . . . Recycling Units . | . . . Scanalyzers . | . . . Garrison Access . | . . . Data Cores Recovered . | . . . Used . | . . . Hacking Detections 2 | . 2 . Full Trace Events 2 | . 2 . Feedback Events . | . . . Feedback Blocked . | . . . Robot Schematics Acquired . | . . . Robots Built . | . . . Matter . | . . . Time . | . . . Total Robot Build Rating . | . . . Part Schematics Acquired . | . . . Parts Built . | . . . Matter . | . . . Time . | . . . Total Part Build Rating . | . . . Parts Repaired . | . . . Time . | . . . Parts Recycled . | . . . Recycled Matter . | . . . Retrieved Matter . | . . . Retrieved Components 9 | . 9 . Parts Scanalyzed . | . . . Part Schematics Acquired . | . . . Parts Damaged . | . . . Bothacking | -11 -10 -10 ------------ Run | Scr Mat Min Used RIF Installer . | . . . Robots Hacked . | . . . Non-combat . | . . . Combat . | . . . Robot Hacks Applied . | . . . Relay Couplers Released . | . . . Robots Rewired . | . . . Allies Hacked . | . . . Hacks Repelled . | . . . Allies | -11 -10 -10 -------- Run | Scr Mat Min Total Allies . | . . . Largest Group . | . . . Highest-Rated Group . | . . . Highest-Rated Ally . | . . . Total Orders . | . . . Ally Attacks . | . . . Total Damage . | . . . Kills . | . . . Allies Corrupted . | . . . Allies Melted . | . . . Intel | -11 -10 -10 ------- Run | Scr Mat Min Robot Analysis Total 1 | . 1 . Derelict Logs Recovered 1 | . . 1 Drone Launches . | . . . Drone Recoveries . | . . . Exploration | -11 -10 -10 ------------- Run | Scr Mat Min Turns Passed 465 | 39 298 128 Spaces Moved 295 | 33 187 75 Core 1 | 1 . . Treads . | . . . Legs . | . . . Wheels 294 | 32 187 75 Hover . | . . . Flight . | . . . Fastest Speed 50 | 50 90 90 Average Speed 90 | 90 90 90 Slowest Speed 100 | 100 90 90 Overloaded Moves . | . . . Propulsion Burnouts . | . . . Robots Hopped . | . . . Cave-ins Triggered . | . . . Exploration Rate (%) 23 | 2 42 27 Regions Visited 2 Branch Regions 1 Pre-discovered Areas . | . . . Known Exits Taken 1 | . 1 . Unknown Exits Taken 1 | 1 . . Scrap Searched . | . . . Spaces Dug . | . . . Terrain Destroyed . | . . . Melee . | . . . Projectile . | . . . AOE . | . . . Terrain Rammed . | . . . Walls Destroyed . | . . . Machines Disabled . | . . . Actions | -11 -10 -10 --------- Run | Scr Mat Min Total 415 | 40 262 113 Wait 19 | 4 10 5 Move 293 | 32 186 75 Hop . | . . . Pick Up . | . . . Fast Attach 7 | 4 3 . Attach . | . . . Detach . | . . . Swap 1 | . 1 . Drop . | . . . Fire 74 | . 52 22 Melee . | . . . Ram 10 | . . 10 Kick . | . . . Crush . | . . . Escape Stasis . | . . . Rewire . | . . . Trap . | . . . Miscellaneous 11 | . 10 1 Route ------- -11/Scrapyard -10/Materials (discovered 3 exits: [*Mat] / *Min x2) -10/Mines History --------- Turn | Location | Event 1 | -11/Scrapyard | Upgraded with Propulsion slot (x1) 1 | -11/Scrapyard | Upgraded with Utility slot (x2) 15 | -11/Scrapyard | Discovered new exit (range 16) 40 | -11/Scrapyard | Entered Materials 150 | -10/Materials | Core integrity fell below 50% 264 | -10/Materials | Discovered new exit (range 8) 270 | -10/Materials | Identified exit to Mines 278 | -10/Materials | Discovered new exit (range 14) 311 | -10/Materials | Build established: Mutant 333 | -10/Materials | Discovered exit to Mines (range 7) 338 | -10/Materials | Entered Mines 340 | -10/Mines | Reached level 2 372 | -10/Mines | Core integrity fell below 20% 376 | -10/Mines | Assembled infested the area 413 | -10/Mines | Learned Materials security intel 466 | -10/Mines | Core destroyed Last Messages --------------- 00376_ ALERT: Infestation in the mines, dispatching Demolisher response squad. 00377_ Used Protomatter to restore core integrity (+24, depleted) 00392_ T-07 Excavator destroyed. 00405_ K-01 Serf collects debris. 00413_ K-01 Serf cleans the Seismic Survey Station. 00413_ Acquired derelict log, extracted data. Data stored: Materials security intel. 00416_ K-01 Serf collects debris. 00452_ Flight Unit melted. 00452_ S-10 Pest destroyed. 00453_ Med. Laser destroyed. 00456_ Slammed into S-10 Pest. 00456_ Destabilizing: Core damaged (-12). 00457_ Slammed into S-10 Pest. 00457_ Destabilizing: Core damaged (-24). 00458_ Slammed into S-10 Pest. 00460_ S-10 Pest destroyed. 00461_ Slammed into S-10 Pest. 00466_ Destabilizing: Core damaged (-24). Map ----- +----------------------------------------------------+ | | | | | | | ????????????????????????????????????? | | ???????####?????????????????????????? | | ?####### ##????????????????????????? | | ## #?###????????????????????? | | # ## ##???????????????????? | | ##??????????????????? | | """ #######????????????? | | """ ?????????????? | | """ ???????????????? | | #????????????????????? | | #????????????????????? | | ## #????????????????????? | | # # #### ##????????????????????? | | # # ##??# ##?????????????????????? | | ## # #???# #??????????????????????? | | ?# # ##### #####??????????????????? | | ?# # #??????????????????? | | ?# # #??????????????????? | | ########### #??????????????????? | | #?????????# ##?????????????????? | | #####????????## ###########???????? | | ?????????????# %%s%*#???????? | | ?????????????# %%%@=%#???????? | | ????????????# #####%%#???????? | | ????????????# #???# #???????? | | ????????????## #??# #???????? | | ?????????????## #??# #???????? | | ??????????????## ##??# #???????? | | ???????????????#######???# #???????? | | ?????????????????????????# #???????? | | ?????????????????????????# #???????? | | ?????????????????????????# #???????? | | ?????????????????????????# #???????? | | ?????????????????????????# #???????? | | ?????????????????????????# #???????? | | ?????????????????????????? ???????? | | ?????????????????????????? ???????? | | ?????????????????????????? ???????? | | ?????????????????????????? ""???????? | | ????????????????????????????????????? | | ????????????????????????????????????? | | ????????????????????????????????????? | | ????????????????????????????????????? | | ????????????????????????????????????? | | ????????????????????????????????????? | | ????????????????????????????????????? | | ????????????????????????????????????? | +----------------------------------------------------+ Best States ------------- Heat Dissipation 25 Energy Generation 10 Energy Capacity 250 Matter Stores 300 Matter Capacity 300 Sight Range 16 Robot Scan Range 10 Terrain Scan Density 10 ECM Strength 1 Evasion (%) 42 Item Schematics ----------------- None Robot Schematics ------------------ None Fabricated ------------ Nothing Alien Tech Used ----------------- None Achievements -------------- None Challenges ------------ None RPGLIKE | -11 -10 -10 --------- Run | Scr Mat Min Levels Raised 1 | . . 1 XP Earned 5385 | 3000 1135 1250 XP Spent 2750 | 2750 . . Upgrades 6 | 6 . . Propulsion Slot 1 | 1 . . Utility Slot 2 | 2 . . Inventory Capacity 2 | 2 . . Melee Accuracy 1 | 1 . . Protomatter Created 123 | . 98 25 Integrity Restored 210 | . 186 24 Core 210 | . 186 24 Protomatter Decayed 69 | . 69 . Game ------ Seed ImprinterLauncherRail Manual? 0 Play Time 00:07:46 Cumulative 28.8 hours Start 2021.04.25 @ 15:35:55 End 2021.04.25 @ 15:43:21 Sessions 1 Manual Loads 0 Difficulty Rogue Special Mode Winter2019/RPGLIKE Game No. 32 Rogue 32 Adventurer 0 Explorer 0 Win Type - Total 0 Types 0/0/0/0/0/0/0/0/0 Lore% 49 Gallery% 48 Achievement% 44 Wizard Run 0 Options --------- ASCII 0 Keyboard 0 Movement Numpad Keybinds 0 Fullscreen 1 Font 18/SmallcapsGlow Map View 76x50 Tactical HUD 1 Map Filters NONE Filters NONE Steam 1 RUN: beac4042-b60f-4692-b359-aa7fb5e88bfc